[Event "*** Titled Tuesday Blitz"]
[Site "Chess.com"]
[Date "2020.10.27"]
[Round "10"]
[White "chesstrainer2042"]
[Black "Flawless_Fighter"]
[Result "0-1"]
[WhiteElo "2415"]
[BlackElo "2604"]
[TimeControl "180+1"]
[EndTime "11:54:48 PDT"]
[Termination "Flawless_Fighter won by resignation"]

1. e4 {[%clk 0:02:48.7]} 1... c6 {[%clk 0:02:59.7]} 2. Nc3 {[%clk 0:02:47.8]}
2... d5 {[%clk 0:03:00.6]} 3. Nf3 {[%clk 0:02:48.3]} 3... Bg4 {[%clk 0:03:00.9]}
4. h3 {[%clk 0:02:48.4]} 4... Bxf3 {[%clk 0:03:01.5]} 5. Qxf3 {[%clk 0:02:48.3]}
5... e6 {[%clk 0:03:02.2]} 6. g3 {[%clk 0:02:48.5]} 6... Nf6 {[%clk 0:03:02.2]}
7. d3 {[%clk 0:02:48.4]} 7... Bb4 {[%clk 0:03:00.7]} 8. Bd2 {[%clk 0:02:45.8]}
8... d4 {[%clk 0:03:00.7]} 9. Nb1 {[%clk 0:02:45.9]} 9... Bxd2+ {[%clk 0:03:00]}
10. Nxd2 {[%clk 0:02:45.9]} 10... c5 {[%clk 0:02:59.3]} 11. Bg2 {[%clk
0:02:45.3]} 11... Nc6 {[%clk 0:02:59.7]} 12. O-O {[%clk 0:02:45.3]} 12... O-O
{[%clk 0:03:00]} 13. Qe2 {[%clk 0:02:43]} 13... e5 {[%clk 0:02:54.3]} 14. f4
{[%clk 0:02:42.1]} 14... Rc8 {[%clk 0:02:51.5]} 15. h4 {[%clk 0:02:33.1]} 15...
b5 {[%clk 0:02:29.9]} 16. Bh3 {[%clk 0:02:33]} 16... Rc7 {[%clk 0:02:30.4]} 17.
f5 {[%clk 0:02:23.3]} 17... Ne8 {[%clk 0:02:25.6]} 18. Qf2 {[%clk 0:02:19.8]}
18... Nd6 {[%clk 0:02:14.1]} 19. g4 {[%clk 0:02:16]} 19... Nb4 {[%clk
0:02:14.1]} 20. Nf3 {[%clk 0:02:14.4]} 20... f6 {[%clk 0:02:13.9]} 21. g5 {[%clk
0:02:13.4]} 21... c4 {[%clk 0:02:11.2]} 22. a3 {[%clk 0:02:10.5]} 22... Na6
{[%clk 0:02:08.9]} 23. Kh1 {[%clk 0:02:02.1]} 23... cxd3 {[%clk 0:02:06.6]} 24.
cxd3 {[%clk 0:02:02]} 24... Nc5 {[%clk 0:02:06.9]} 25. Rad1 {[%clk 0:02:02]}
25... a5 {[%clk 0:01:55.7]} 26. Rg1 {[%clk 0:02:02]} 26... Kh8 {[%clk
0:01:54.8]} 27. Rg4 {[%clk 0:01:47.6]} 27... b4 {[%clk 0:01:51.5]} 28. axb4
{[%clk 0:01:43.6]} 28... axb4 {[%clk 0:01:52.4]} 29. Bf1 {[%clk 0:01:43.4]}
29... b3 {[%clk 0:01:47.5]} 30. Be2 {[%clk 0:01:43.4]} 30... Na4 {[%clk
0:01:47.2]} 31. Rdg1 {[%clk 0:01:42.2]} 31... Nxb2 {[%clk 0:01:43.3]} 32. h5
{[%clk 0:01:41.7]} 32... Rc2 {[%clk 0:01:20.5]} 33. Ne1 {[%clk 0:01:36.6]} 33...
Nd1 {[%clk 0:01:11.2]} 34. Qf3 {[%clk 0:01:29.4]} 34... Ne3 {[%clk 0:01:10.2]}
35. Nxc2 {[%clk 0:01:27.4]} 35... bxc2 {[%clk 0:01:10.1]} 36. h6 {[%clk
0:01:27.4]} 36... gxh6 {[%clk 0:01:08.5]} 37. gxh6 {[%clk 0:01:27.2]} 37... Nxg4
{[%clk 0:00:56.4]} 38. Qxg4 {[%clk 0:01:22.4]} 38... Rg8 {[%clk 0:00:56.1]} 0-1

[Event "*** Titled Tuesday Blitz"]
[Site "Chess.com"]
[Date "2020.10.27"]
[Round "10"]
[White "Cambek64"]
[Black "Klavdia_Nik"]
[Result "1-0"]
[WhiteElo "2303"]
[BlackElo "2063"]
[TimeControl "180+1"]
[EndTime "11:54:52 PDT"]
[Termination "Cambek64 won on time"]

1. e4 {[%clk 0:02:58.3]} 1... e6 {[%clk 0:02:50.6]} 2. d4 {[%clk 0:02:52.3]}
2... d5 {[%clk 0:02:50.8]} 3. Nc3 {[%clk 0:02:52.7]} 3... dxe4 {[%clk
0:02:51.2]} 4. Nxe4 {[%clk 0:02:51.8]} 4... Bd7 {[%clk 0:02:51.9]} 5. Nf3 {[%clk
0:02:50.7]} 5... Bc6 {[%clk 0:02:51.8]} 6. Bd3 {[%clk 0:02:51.1]} 6... Nd7
{[%clk 0:02:52.4]} 7. O-O {[%clk 0:02:51.3]} 7... Ngf6 {[%clk 0:02:52.9]} 8. Qe2
{[%clk 0:02:50.9]} 8... Be7 {[%clk 0:02:51.3]} 9. Rd1 {[%clk 0:02:47.8]} 9...
Nxe4 {[%clk 0:02:49]} 10. Bxe4 {[%clk 0:02:46.6]} 10... Bxe4 {[%clk 0:02:49.6]}
11. Qxe4 {[%clk 0:02:47.2]} 11... c6 {[%clk 0:02:50.2]} 12. c4 {[%clk
0:02:47.4]} 12... Nf6 {[%clk 0:02:48.1]} 13. Qe2 {[%clk 0:02:44.1]} 13... O-O
{[%clk 0:02:44.9]} 14. Bf4 {[%clk 0:02:42.7]} 14... Re8 {[%clk 0:02:40]} 15. Rd3
{[%clk 0:02:42.1]} 15... Qa5 {[%clk 0:02:33.9]} 16. b3 {[%clk 0:02:39.9]} 16...
Qf5 {[%clk 0:02:33]} 17. Bg3 {[%clk 0:02:36.7]} 17... Nh5 {[%clk 0:02:18.9]} 18.
Ne5 {[%clk 0:02:29.1]} 18... Nxg3 {[%clk 0:02:03.7]} 19. Rxg3 {[%clk 0:02:29]}
19... g6 {[%clk 0:01:58.1]} 20. Rf3 {[%clk 0:02:26.8]} 20... Qh5 {[%clk
0:01:55.4]} 21. Nxf7 {[%clk 0:02:18.9]} 21... Bf8 {[%clk 0:01:38.5]} 22. Rd1
{[%clk 0:02:09.9]} 22... Bg7 {[%clk 0:01:28.7]} 23. h3 {[%clk 0:02:08.8]} 23...
Re7 {[%clk 0:00:52.5]} 24. Ne5 {[%clk 0:02:06.1]} 24... Rd8 {[%clk 0:00:43.9]}
25. g4 {[%clk 0:02:03.7]} 25... Qh4 {[%clk 0:00:37.9]} 26. Kg2 {[%clk
0:02:03.1]} 26... h5 {[%clk 0:00:11]} 27. Nxg6 {[%clk 0:02:01.2]} 27... Qg5
{[%clk 0:00:02.6]} 28. Nxe7+ {[%clk 0:02:00.6]} 28... Qxe7 {[%clk 0:00:03.1]}
29. Qe4 {[%clk 0:01:55.6]} 29... hxg4 {[%clk 0:00:02.2]} 30. hxg4 {[%clk
0:01:54.1]} 30... Qg5 {[%clk 0:00:02.5]} 31. Qxe6+ {[%clk 0:01:50.8]} 1-0

[Event "*** Titled Tuesday Blitz"]
[Site "Chess.com"]
[Date "2020.10.27"]
[Round "10"]
[White "andrzej"]
[Black "Yoshikrov"]
[Result "1-0"]
[WhiteElo "2305"]
[BlackElo "2135"]
[TimeControl "180+1"]
[EndTime "11:54:55 PDT"]
[Termination "andrzej won by resignation"]

1. e4 {[%clk 0:03:00.9]} 1... c5 {[%clk 0:03:00.2]} 2. Nf3 {[%clk 0:03:00.9]}
2... d6 {[%clk 0:03:00.6]} 3. d4 {[%clk 0:03:01.4]} 3... cxd4 {[%clk 0:03:01.5]}
4. Nxd4 {[%clk 0:03:02]} 4... Nf6 {[%clk 0:03:01.9]} 5. Nc3 {[%clk 0:03:02.6]}
5... a6 {[%clk 0:03:02.1]} 6. Be3 {[%clk 0:03:02.9]} 6... e5 {[%clk 0:03:02.2]}
7. Nf3 {[%clk 0:03:03.5]} 7... Nc6 {[%clk 0:02:54.8]} 8. Bc4 {[%clk 0:03:01.1]}
8... Be7 {[%clk 0:02:41.8]} 9. O-O {[%clk 0:02:58.3]} 9... O-O {[%clk
0:02:41.7]} 10. Qe2 {[%clk 0:02:55.4]} 10... Be6 {[%clk 0:02:18.3]} 11. Bb3
{[%clk 0:02:53.3]} 11... b5 {[%clk 0:02:10.1]} 12. Rfd1 {[%clk 0:02:51.1]} 12...
Bxb3 {[%clk 0:01:43]} 13. cxb3 {[%clk 0:02:50.6]} 13... b4 {[%clk 0:01:43.4]}
14. Nd5 {[%clk 0:02:49.8]} 14... Nxd5 {[%clk 0:01:32.2]} 15. exd5 {[%clk
0:02:49.7]} 15... Nb8 {[%clk 0:01:30.9]} 16. Rac1 {[%clk 0:02:49.5]} 16... Nd7
{[%clk 0:01:30.2]} 17. Rc4 {[%clk 0:02:41.1]} 17... a5 {[%clk 0:01:27.1]} 18.
Rdc1 {[%clk 0:02:40.3]} 18... Bf6 {[%clk 0:01:08.6]} 19. Rc6 {[%clk 0:02:38.3]}
19... Qe7 {[%clk 0:00:55.9]} 20. Rc7 {[%clk 0:02:38.4]} 20... Qe8 {[%clk
0:00:31.7]} 21. Qb5 {[%clk 0:02:30.3]} 21... Rd8 {[%clk 0:00:23.1]} 22. Qxa5
{[%clk 0:02:24.9]} 22... e4 {[%clk 0:00:23.5]} 23. Nd4 {[%clk 0:02:21.3]} 23...
Ne5 {[%clk 0:00:22.8]} 24. Nc6 {[%clk 0:02:03.4]} 24... Nd3 {[%clk 0:00:22.4]}
25. Rc2 {[%clk 0:01:54.2]} 25... Ra8 {[%clk 0:00:21.2]} 26. Ra7 {[%clk
0:01:49.3]} 26... Rxa7 {[%clk 0:00:20.9]} 27. Qxa7 {[%clk 0:01:50.2]} 27... Bxb2
{[%clk 0:00:19.6]} 28. Bd4 {[%clk 0:01:32.9]} 28... Bxd4 {[%clk 0:00:19.4]} 29.
Qxd4 {[%clk 0:01:33.8]} 29... Qd8 {[%clk 0:00:17.1]} 30. Nxd8 {[%clk 0:01:20.2]}
1-0

[Event "*** Titled Tuesday Blitz"]
[Site "Chess.com"]
[Date "2020.10.27"]
[Round "10"]
[White "BJthechessgod"]
[Black "Michaelson_11"]
[Result "1-0"]
[WhiteElo "2298"]
[BlackElo "2130"]
[TimeControl "180+1"]
[EndTime "11:54:56 PDT"]
[Termination "BJthechessgod won by checkmate"]

1. e4 {[%clk 0:03:00.9]} 1... c5 {[%clk 0:02:58.7]} 2. Nf3 {[%clk 0:03:00.5]}
2... Nc6 {[%clk 0:02:59.6]} 3. d4 {[%clk 0:03:00.4]} 3... cxd4 {[%clk
0:03:00.5]} 4. Nxd4 {[%clk 0:03:01.3]} 4... g6 {[%clk 0:03:01.4]} 5. Nc3 {[%clk
0:03:01]} 5... Bg7 {[%clk 0:03:01.3]} 6. Be3 {[%clk 0:03:01.9]} 6... Nf6 {[%clk
0:03:00.9]} 7. Bc4 {[%clk 0:03:01.7]} 7... O-O {[%clk 0:03:01]} 8. Bb3 {[%clk
0:03:01.3]} 8... Re8 {[%clk 0:02:59.4]} 9. f3 {[%clk 0:02:59.7]} 9... e6 {[%clk
0:02:52.1]} 10. Qd2 {[%clk 0:02:52]} 10... d5 {[%clk 0:02:51.2]} 11. exd5 {[%clk
0:02:47.9]} 11... Nxd5 {[%clk 0:02:42.4]} 12. Nxd5 {[%clk 0:02:31.3]} 12... exd5
{[%clk 0:02:43.3]} 13. O-O-O {[%clk 0:02:31]} 13... Qf6 {[%clk 0:02:32.2]} 14.
c3 {[%clk 0:02:20]} 14... Be6 {[%clk 0:02:17]} 15. Nxc6 {[%clk 0:02:13.8]} 15...
bxc6 {[%clk 0:02:14]} 16. Bd4 {[%clk 0:02:14.7]} 16... Qe7 {[%clk 0:02:04.2]}
17. Bxg7 {[%clk 0:01:39.6]} 17... Kxg7 {[%clk 0:02:05.1]} 18. h4 {[%clk
0:01:39.4]} 18... h5 {[%clk 0:01:54.8]} 19. g4 {[%clk 0:01:32.5]} 19... hxg4
{[%clk 0:01:49.7]} 20. fxg4 {[%clk 0:01:28.3]} 20... Bxg4 {[%clk 0:01:47.1]} 21.
Qd4+ {[%clk 0:01:27.8]} 21... Qe5 {[%clk 0:01:43.1]} 22. Qxg4 {[%clk 0:01:28.7]}
22... Qe3+ {[%clk 0:01:43.2]} 23. Kb1 {[%clk 0:01:26.5]} 23... Re4 {[%clk
0:01:44.1]} 24. Qd7 {[%clk 0:01:24.3]} 24... Re7 {[%clk 0:01:37.5]} 25. Qxc6
{[%clk 0:01:23.9]} 25... Rae8 {[%clk 0:01:32.9]} 26. Qxd5 {[%clk 0:01:21.3]}
26... Qe2 {[%clk 0:01:21.8]} 27. h5 {[%clk 0:01:15.4]} 27... Re6 {[%clk
0:01:04.4]} 28. hxg6 {[%clk 0:01:03.9]} 28... fxg6 {[%clk 0:01:00.5]} 29. Qd4+
{[%clk 0:01:00.5]} 29... Re5 {[%clk 0:00:58.8]} 30. Qh4 {[%clk 0:00:57]} 30...
R8e7 {[%clk 0:00:46.8]} 31. Qh8# {[%clk 0:00:45.6]} 1-0

[Event "*** Titled Tuesday Blitz"]
[Site "Chess.com"]
[Date "2020.10.27"]
[Round "10"]
[White "redbaron8888"]
[Black "Ural_bogatyr"]
[Result "1-0"]
[WhiteElo "2510"]
[BlackElo "2363"]
[TimeControl "180+1"]
[EndTime "11:55:02 PDT"]
[Termination "redbaron8888 won by resignation"]

1. d4 {[%clk 0:03:00.9]} 1... Nf6 {[%clk 0:02:59.2]} 2. Bg5 {[%clk 0:03:01]}
2... d5 {[%clk 0:02:57]} 3. Nd2 {[%clk 0:03:00.4]} 3... Nbd7 {[%clk 0:02:55.5]}
4. c4 {[%clk 0:02:55.2]} 4... c6 {[%clk 0:02:54.2]} 5. Ngf3 {[%clk 0:02:53.9]}
5... e6 {[%clk 0:02:54]} 6. e3 {[%clk 0:02:53.7]} 6... h6 {[%clk 0:02:51.5]} 7.
Bh4 {[%clk 0:02:53.2]} 7... g5 {[%clk 0:02:51.2]} 8. Bg3 {[%clk 0:02:53.3]} 8...
Ne4 {[%clk 0:02:51.8]} 9. Nxe4 {[%clk 0:02:52]} 9... dxe4 {[%clk 0:02:50.7]} 10.
Nd2 {[%clk 0:02:52.9]} 10... f5 {[%clk 0:02:49.9]} 11. Qh5+ {[%clk 0:02:51]}
11... Ke7 {[%clk 0:02:48.8]} 12. c5 {[%clk 0:02:21.1]} 12... Qe8 {[%clk
0:02:38.1]} 13. Qd1 {[%clk 0:02:00.3]} 13... Nf6 {[%clk 0:02:31.7]} 14. h4
{[%clk 0:01:51.2]} 14... g4 {[%clk 0:02:07.1]} 15. Be5 {[%clk 0:01:35.9]} 15...
Bg7 {[%clk 0:02:00.5]} 16. Nc4 {[%clk 0:01:33.4]} 16... Nh5 {[%clk 0:01:56.9]}
17. Nd6 {[%clk 0:01:30.9]} 17... Qd8 {[%clk 0:01:49.1]} 18. g3 {[%clk
0:01:22.5]} 18... Bxe5 {[%clk 0:01:36.2]} 19. dxe5 {[%clk 0:01:23.4]} 19... Qa5+
{[%clk 0:01:35.8]} 20. Qd2 {[%clk 0:01:22.3]} 20... Qxc5 {[%clk 0:01:34.5]} 21.
Rd1 {[%clk 0:00:56]} 21... Qxe5 {[%clk 0:01:19.3]} 22. Nc4 {[%clk 0:00:55.3]}
22... Qc5 {[%clk 0:01:01]} 23. b4 {[%clk 0:00:52.9]} 23... Qb5 {[%clk
0:00:40.5]} 24. Qd6+ {[%clk 0:00:48.6]} 24... Kf7 {[%clk 0:00:34.1]} 25. Ne5+
{[%clk 0:00:44.4]} 25... Kf6 {[%clk 0:00:33.8]} 26. Bxb5 {[%clk 0:00:42.2]} 1-0

[Event "*** Titled Tuesday Blitz"]
[Site "Chess.com"]
[Date "2020.10.27"]
[Round "10"]
[White "Chessalary"]
[Black "silverback96"]
[Result "1-0"]
[WhiteElo "2402"]
[BlackElo "2241"]
[TimeControl "180+1"]
[EndTime "11:55:11 PDT"]
[Termination "Chessalary won by resignation"]

1. e4 {[%clk 0:03:00.9]} 1... e6 {[%clk 0:02:58.1]} 2. d4 {[%clk 0:03:00.4]}
2... d5 {[%clk 0:02:57.7]} 3. Nd2 {[%clk 0:03:00]} 3... Nf6 {[%clk 0:02:55.6]}
4. e5 {[%clk 0:02:57.8]} 4... Nfd7 {[%clk 0:02:52.6]} 5. Bd3 {[%clk 0:02:58.1]}
5... c5 {[%clk 0:02:51.4]} 6. c3 {[%clk 0:02:58.7]} 6... Nc6 {[%clk 0:02:50.9]}
7. Ne2 {[%clk 0:02:59.4]} 7... cxd4 {[%clk 0:02:50.3]} 8. cxd4 {[%clk
0:03:00.3]} 8... f6 {[%clk 0:02:49.9]} 9. exf6 {[%clk 0:03:01.2]} 9... Nxf6
{[%clk 0:02:50.8]} 10. O-O {[%clk 0:03:02.1]} 10... Bd6 {[%clk 0:02:49.2]} 11.
Nf3 {[%clk 0:03:02.1]} 11... Qc7 {[%clk 0:02:48]} 12. g3 {[%clk 0:02:56.4]}
12... O-O {[%clk 0:02:45.9]} 13. Bf4 {[%clk 0:02:56.9]} 13... Ne4 {[%clk
0:02:33.8]} 14. Rc1 {[%clk 0:02:26.2]} 14... Bxf4 {[%clk 0:02:30.7]} 15. Nxf4
{[%clk 0:02:24.8]} 15... Rxf4 {[%clk 0:02:30.4]} 16. gxf4 {[%clk 0:02:22.8]}
16... Qxf4 {[%clk 0:02:31.3]} 17. Bxe4 {[%clk 0:02:18.3]} 17... Qg4+ {[%clk
0:02:25.3]} 18. Kh1 {[%clk 0:02:16.2]} 18... Qxe4 {[%clk 0:02:26.1]} 19. Re1
{[%clk 0:02:08.3]} 19... Qf4 {[%clk 0:02:17.3]} 20. Rc3 {[%clk 0:01:58.3]} 20...
Bd7 {[%clk 0:02:16]} 21. Qd2 {[%clk 0:01:56.2]} 21... Rf8 {[%clk 0:02:06.5]} 22.
Qxf4 {[%clk 0:01:54.2]} 22... Rxf4 {[%clk 0:02:07.4]} 23. Ne5 {[%clk 0:01:52.4]}
23... Be8 {[%clk 0:02:04.8]} 24. Nxc6 {[%clk 0:01:51]} 24... Bxc6 {[%clk
0:02:05.5]} 25. Rxe6 {[%clk 0:01:51.6]} 25... Rxd4 {[%clk 0:02:04.2]} 26. Kg2
{[%clk 0:01:41.4]} 26... Rd2 {[%clk 0:02:00]} 27. Rg3 {[%clk 0:01:36.3]} 27...
Rxb2 {[%clk 0:01:57]} 28. Re7 {[%clk 0:01:34.8]} 28... g6 {[%clk 0:01:56.9]} 29.
Rh3 {[%clk 0:01:33.4]} 29... d4+ {[%clk 0:01:54.8]} 30. Kg3 {[%clk 0:01:33]}
30... d3 {[%clk 0:01:49.1]} 31. Rhxh7 {[%clk 0:01:31.5]} 31... Bd5 {[%clk
0:01:48.3]} 32. Rd7 {[%clk 0:01:24.5]} 32... Rb5 {[%clk 0:01:46.3]} 33. Rhe7
{[%clk 0:01:22]} 33... Kf8 {[%clk 0:01:37.1]} 34. Re5 {[%clk 0:01:20.4]} 34...
Bc6 {[%clk 0:01:31.3]} 35. Rxb5 {[%clk 0:01:01.1]} 35... Bxb5 {[%clk 0:01:32.2]}
36. Rd4 {[%clk 0:00:55.9]} 36... Kf7 {[%clk 0:01:26.8]} 37. Kf4 {[%clk
0:00:55.9]} 37... Kf6 {[%clk 0:01:24.4]} 38. Ke3 {[%clk 0:00:55.9]} 38... g5
{[%clk 0:01:08.2]} 39. Rd6+ {[%clk 0:00:50.9]} 39... Kf5 {[%clk 0:01:07.4]} 40.
Rd5+ {[%clk 0:00:50.8]} 1-0

[Event "*** Titled Tuesday Blitz"]
[Site "Chess.com"]
[Date "2020.10.27"]
[Round "10"]
[White "Lion-Al-Messi"]
[Black "MrChampion_Coach"]
[Result "1-0"]
[WhiteElo "2540"]
[BlackElo "2429"]
[TimeControl "180+1"]
[EndTime "11:55:18 PDT"]
[Termination "Lion-Al-Messi won on time"]

1. e4 {[%clk 0:03:00.9]} 1... c5 {[%clk 0:02:58.2]} 2. Nf3 {[%clk 0:03:01.2]}
2... d6 {[%clk 0:02:58.5]} 3. d4 {[%clk 0:03:01.6]} 3... cxd4 {[%clk 0:02:59.1]}
4. Nxd4 {[%clk 0:03:02.5]} 4... Nf6 {[%clk 0:02:59.4]} 5. Nc3 {[%clk 0:03:03.2]}
5... a6 {[%clk 0:03:00]} 6. Bg5 {[%clk 0:03:02.8]} 6... e6 {[%clk 0:03:00.1]} 7.
Bd3 {[%clk 0:03:02.7]} 7... Nbd7 {[%clk 0:02:52.9]} 8. O-O {[%clk 0:03:02.1]}
8... Qa5 {[%clk 0:02:49.9]} 9. f4 {[%clk 0:03:01.3]} 9... Qb6 {[%clk 0:02:49.6]}
10. Bc4 {[%clk 0:02:59.2]} 10... e5 {[%clk 0:02:43.7]} 11. fxe5 {[%clk 0:02:59]}
11... dxe5 {[%clk 0:02:44]} 12. Bxf6 {[%clk 0:02:59.2]} 12... Nxf6 {[%clk
0:02:43.7]} 13. Rxf6 {[%clk 0:02:59.6]} 13... Qxf6 {[%clk 0:01:57.9]} 14. Nd5
{[%clk 0:02:58.2]} 14... Qd8 {[%clk 0:01:57.7]} 15. Nf5 {[%clk 0:02:56.7]} 15...
Bxf5 {[%clk 0:01:50.6]} 16. exf5 {[%clk 0:02:57.6]} 16... Rc8 {[%clk 0:01:40.1]}
17. Bb3 {[%clk 0:02:56.7]} 17... Qg5 {[%clk 0:01:05.2]} 18. f6 {[%clk
0:02:53.4]} 18... Bc5+ {[%clk 0:00:58.2]} 19. Kh1 {[%clk 0:02:52.7]} 19... gxf6
{[%clk 0:00:58.3]} 20. Qf3 {[%clk 0:02:52]} 20... f5 {[%clk 0:00:53.6]} 21. Rd1
{[%clk 0:02:49.9]} 21... Rg8 {[%clk 0:00:42.9]} 22. g3 {[%clk 0:02:11.3]} 22...
Rg6 {[%clk 0:00:42.4]} 23. Re1 {[%clk 0:02:04.6]} 23... e4 {[%clk 0:00:40.5]}
24. Qc3 {[%clk 0:01:58.9]} 24... Qg4 {[%clk 0:00:23.7]} 25. Nf4 {[%clk
0:01:55.9]} 25... Kf8 {[%clk 0:00:17.5]} 26. Nxg6+ {[%clk 0:01:54.4]} 26... Qxg6
{[%clk 0:00:15.7]} 27. Qh8+ {[%clk 0:01:49.3]} 27... Qg8 {[%clk 0:00:14.6]} 28.
Qe5 {[%clk 0:01:50.2]} 28... Qg6 {[%clk 0:00:13.9]} 29. Rd1 {[%clk 0:01:45.2]}
29... Re8 {[%clk 0:00:12.5]} 30. Qxc5+ {[%clk 0:01:44.7]} 30... Kg8 {[%clk
0:00:12]} 31. Rd7 {[%clk 0:01:43.8]} 31... Rf8 {[%clk 0:00:11.1]} 32. Qe5 {[%clk
0:01:41.7]} 32... Qc6 {[%clk 0:00:09.4]} 33. Qd5 {[%clk 0:01:39.4]} 33... Qf6
{[%clk 0:00:07]} 34. Kg2 {[%clk 0:01:37.8]} 34... Qg6 {[%clk 0:00:05.2]} 35.
Qxb7 {[%clk 0:01:35.9]} 35... f4 {[%clk 0:00:05.1]} 36. Rxf7 {[%clk 0:01:31.3]}
36... f3+ {[%clk 0:00:04.2]} 37. Rxf3+ {[%clk 0:01:30.4]} 37... Rf7 {[%clk
0:00:05.1]} 38. Rxf7 {[%clk 0:01:29.4]} 1-0

[Event "*** Titled Tuesday Blitz"]
[Site "Chess.com"]
[Date "2020.10.27"]
[Round "10"]
[White "CakeinSpace2002"]
[Black "AldokhinIvan"]
[Result "0-1"]
[WhiteElo "2351"]
[BlackElo "2560"]
[TimeControl "180+1"]
[EndTime "11:55:19 PDT"]
[Termination "AldokhinIvan won by resignation"]

1. c4 {[%clk 0:03:00]} 1... Nf6 {[%clk 0:02:58.7]} 2. Nc3 {[%clk 0:02:58.5]}
2... c5 {[%clk 0:02:52.9]} 3. g3 {[%clk 0:02:58.1]} 3... g6 {[%clk 0:02:52.4]}
4. Bg2 {[%clk 0:02:57.9]} 4... Bg7 {[%clk 0:02:52.4]} 5. e3 {[%clk 0:02:57.6]}
5... O-O {[%clk 0:02:50.6]} 6. Nge2 {[%clk 0:02:58.5]} 6... Nc6 {[%clk
0:02:30.4]} 7. O-O {[%clk 0:02:57.8]} 7... d6 {[%clk 0:02:25.4]} 8. d3 {[%clk
0:02:56.9]} 8... e5 {[%clk 0:02:23.9]} 9. a3 {[%clk 0:02:56.2]} 9... Be6 {[%clk
0:02:20]} 10. b4 {[%clk 0:02:55.6]} 10... Qd7 {[%clk 0:02:12.9]} 11. Nd5 {[%clk
0:02:50.8]} 11... cxb4 {[%clk 0:02:02.3]} 12. axb4 {[%clk 0:02:47.5]} 12... Bxd5
{[%clk 0:01:59.4]} 13. cxd5 {[%clk 0:02:46.6]} 13... Nxb4 {[%clk 0:01:58.1]} 14.
e4 {[%clk 0:02:46.5]} 14... Rfc8 {[%clk 0:01:48.1]} 15. Ba3 {[%clk 0:02:43.3]}
15... Nc2 {[%clk 0:01:45.8]} 16. Ra2 {[%clk 0:02:41]} 16... Nxa3 {[%clk
0:01:43.6]} 17. Rxa3 {[%clk 0:02:41.9]} 17... b5 {[%clk 0:01:33.7]} 18. Ra6
{[%clk 0:02:35.9]} 18... b4 {[%clk 0:01:15.7]} 19. Qb3 {[%clk 0:02:33.3]} 19...
Qb5 {[%clk 0:01:10.5]} 20. Rfa1 {[%clk 0:02:31.4]} 20... Nd7 {[%clk 0:01:08.6]}
21. R1a5 {[%clk 0:01:55.1]} 21... Qb8 {[%clk 0:01:07.5]} 22. Qa4 {[%clk
0:01:40.8]} 22... Nc5 {[%clk 0:01:05.2]} 23. Rxc5 {[%clk 0:01:39.1]} 23... Rxc5
{[%clk 0:01:02.1]} 24. Rc6 {[%clk 0:01:24.8]} 24... b3 {[%clk 0:00:55.5]} 25.
Rxc5 {[%clk 0:01:21.1]} 25... dxc5 {[%clk 0:00:55.2]} 26. Nc3 {[%clk 0:01:21.7]}
26... Qb4 {[%clk 0:00:53.7]} 27. Qc6 {[%clk 0:01:17.4]} 27... Rb8 {[%clk
0:00:45]} 28. d6 {[%clk 0:01:03.5]} 28... Qxc3 {[%clk 0:00:41.6]} 29. d7 {[%clk
0:01:03.2]} 29... Rd8 {[%clk 0:00:36.6]} 30. Qc8 {[%clk 0:00:56.9]} 30... Bf6
{[%clk 0:00:34.5]} 0-1

[Event "*** Titled Tuesday Blitz"]
[Site "Chess.com"]
[Date "2020.10.27"]
[Round "10"]
[White "Onischuk_V"]
[Black "Azerichess"]
[Result "0-1"]
[WhiteElo "2823"]
[BlackElo "3001"]
[TimeControl "180+1"]
[EndTime "11:55:24 PDT"]
[Termination "Azerichess won by resignation"]

1. e4 {[%clk 0:03:00.5]} 1... e5 {[%clk 0:02:57.9]} 2. Nf3 {[%clk 0:03:01]} 2...
Nc6 {[%clk 0:02:57.3]} 3. Bc4 {[%clk 0:03:01.5]} 3... Bc5 {[%clk 0:02:56.6]} 4.
d3 {[%clk 0:03:01.3]} 4... Nf6 {[%clk 0:02:56.5]} 5. Nbd2 {[%clk 0:03:01.1]}
5... O-O {[%clk 0:02:55.8]} 6. Bb3 {[%clk 0:02:59.8]} 6... d6 {[%clk 0:02:52.1]}
7. c3 {[%clk 0:02:58.6]} 7... Be6 {[%clk 0:02:49.8]} 8. Bc2 {[%clk 0:02:58]}
8... d5 {[%clk 0:02:44.1]} 9. O-O {[%clk 0:02:58.4]} 9... h6 {[%clk 0:02:29.2]}
10. h3 {[%clk 0:02:57.8]} 10... Re8 {[%clk 0:02:28.9]} 11. exd5 {[%clk
0:02:55.1]} 11... Bxd5 {[%clk 0:02:24.3]} 12. Qe2 {[%clk 0:02:52]} 12... a5
{[%clk 0:02:22]} 13. Ne4 {[%clk 0:02:44.5]} 13... Bb6 {[%clk 0:02:14]} 14. Ba4
{[%clk 0:02:37.1]} 14... Nd7 {[%clk 0:01:58.1]} 15. Ng3 {[%clk 0:02:11.6]} 15...
Nc5 {[%clk 0:01:53.7]} 16. Bc2 {[%clk 0:02:10.1]} 16... Qd7 {[%clk 0:01:41.4]}
17. Be3 {[%clk 0:02:05.7]} 17... Ne6 {[%clk 0:01:36.4]} 18. Nh4 {[%clk
0:01:26.7]} 18... Nf4 {[%clk 0:01:33.9]} 19. Qg4 {[%clk 0:01:26.4]} 19... Qxg4
{[%clk 0:01:24.3]} 20. hxg4 {[%clk 0:01:26.1]} 20... Rad8 {[%clk 0:01:24.5]} 21.
Bxb6 {[%clk 0:01:16.6]} 21... cxb6 {[%clk 0:01:25.4]} 22. Rfe1 {[%clk
0:01:09.2]} 22... g6 {[%clk 0:01:16.9]} 23. Ne4 {[%clk 0:01:07.1]} 23... Kg7
{[%clk 0:01:12.2]} 24. Rad1 {[%clk 0:00:54.8]} 24... b5 {[%clk 0:01:08.6]} 25.
g3 {[%clk 0:00:54.2]} 25... Nh3+ {[%clk 0:01:05.5]} 26. Kg2 {[%clk 0:00:53.8]}
26... Ng5 {[%clk 0:01:04.6]} 27. a3 {[%clk 0:00:53.2]} 27... b4 {[%clk
0:01:00.1]} 28. axb4 {[%clk 0:00:51.9]} 28... axb4 {[%clk 0:01:01]} 29. Re2
{[%clk 0:00:22.5]} 29... b3 {[%clk 0:00:58.2]} 30. Bb1 {[%clk 0:00:18.2]} 30...
Bxe4+ {[%clk 0:00:57.8]} 0-1